bitfinex/quotes_SOLUSD_20241216
["timestamp","ask_amount","ask_price","bid_price","bid_amount"]
[1734371745325,26.37996509,218.93,218.84,20.0]
[1734371745539,26.37996509,218.91,218.85,26.37996509]
[1734371745818,26.37996509,218.91,218.84,20.0]
[1734371745819,26.37996509,218.91,218.84,46.37996509]
[1734371746020,26.37996509,218.91,218.85,26.37996509]
[1734371746619,50.28233909,218.92,218.85,26.37996509]
[1734371746790,26.37996509,218.9,218.84,26.37996509]
[1734371748329,26.37996509,218.91,218.85,26.37996509]
[1734371748695,26.37996509,218.96,218.89,26.37996509]
[1734371748912,26.37996509,218.96,218.81,137.9]
[1734371748913,26.37996509,218.97,218.9,26.37996509]
[1734371749321,26.37996509,218.96,218.89,26.37996509]
[1734371749516,6.0972,218.98,218.89,26.37996509]
[1734371749517,26.37996509,218.95,218.89,26.37996509]
[1734371749722,6.0972,218.98,218.91,26.37996509]
[1734371749723,32.47716509,218.98,218.91,26.37996509]
[1734371749903,26.37996509,218.96,218.9,26.37996509]
[1734371750094,26.37996509,218.97,218.9,26.37996509]
[1734371750827,26.37996509,218.99,218.93,26.37996509]
[1734371751029,26.37996509,219.0,218.93,26.37996509]
[1734371751242,6.2237,219.04,218.96,26.37996509]
[1734371751531,26.37996509,219.06,219.0,26.37996509]
[1734371751911,26.37996509,219.08,219.01,26.37996509]
[1734371752292,26.37996509,219.07,219.01,26.37996509]
[1734371752521,26.37996509,219.09,219.03,26.37996509]
[1734371752718,0.12549,219.08,219.03,26.37996509]
[1734371753143,0.12549,219.08,219.02,26.37996509]
[1734371753448,26.37996509,219.09,219.03,26.37996509]
[1734371754305,26.37996509,219.1,219.03,26.37996509]
[1734371754509,0.12549,219.09,219.05,26.37996509]
[1734371754938,26.37996509,219.11,219.04,26.37996509]
[1734371755112,26.37996509,219.12,219.05,26.37996509]
[1734371755310,0.12549,219.11,219.05,26.37996509]
[1734371755705,0.12549,219.11,218.98,0.68458009]
[1734371755706,26.50545509,219.11,219.04,26.37996509]
[1734371756538,26.37996509,219.12,219.05,26.37996509]
[1734371756740,26.37996509,219.13,219.06,26.37996509]
[1734371756946,26.37996509,219.14,219.07,26.37996509]
[1734371757235,26.37996509,219.13,219.06,26.37996509]
[1734371757605,26.37996509,219.1,219.04,20.0]
[1734371757921,0.12549,219.09,219.04,46.37996509]
[1734371758303,26.37996509,219.12,219.05,26.37996509]
[1734371758531,0.12549,219.11,219.05,26.37996509]
[1734371758842,26.50545509,219.11,219.04,26.37996509]
[1734371760314,26.37996509,219.14,219.07,26.37996509]
[1734371760521,26.37996509,219.15,219.07,26.37996509]
[1734371760720,26.37996509,219.09,219.02,20.0]
[1734371760929,26.37996509,219.1,219.02,46.37996509]
[1734371761122,26.37996509,219.09,219.02,20.0]
[1734371761633,26.37996509,219.1,219.03,26.37996509]
[1734371761814,26.37996509,219.1,219.02,46.37996509]
[1734371762137,26.37996509,219.05,218.98,26.37996509]
[1734371762338,26.37996509,219.06,218.98,26.37996509]
[1734371762538,26.37996509,219.12,218.98,26.37996509]
[1734371762539,26.37996509,219.05,218.98,26.37996509]
[1734371762714,26.37996509,219.04,218.97,26.37996509]
[1734371762909,26.37996509,219.12,218.98,26.37996509]
[1734371762910,26.37996509,219.05,218.98,26.37996509]
[1734371763128,26.37996509,219.06,218.99,26.37996509]
[1734371763326,26.37996509,219.04,218.97,26.37996509]
[1734371764338,26.50545509,219.03,218.96,26.37996509]
[1734371764571,26.37996509,219.0,218.93,26.37996509]
[1734371764784,0.12549,218.98,218.91,27.91306509]
[1734371765251,26.50545509,218.97,218.9,26.37996509]
[1734371765747,26.37996509,219.0,218.93,26.37996509]
[1734371765952,0.12549,218.99,218.93,26.37996509]
[1734371766672,26.37996509,219.0,218.88,6.96743471]
[1734371766673,0.12549,219.0,218.95,26.37996509]
[1734371766968,0.12549,219.0,218.94,26.37996509]
[1734371767132,0.12549,218.98,218.92,26.37996509]
[1734371767761,50.28233909,218.93,218.88,0.68503471]
[1734371768084,26.37996509,218.89,218.81,26.37996509]
[1734371768239,26.37996509,218.89,218.82,26.37996509]
[1734371768442,26.37996509,218.9,218.83,26.37996509]
[1734371769176,26.37996509,218.88,218.85,20.0]
[1734371769341,26.37996509,218.88,218.84,20.0]
[1734371769536,26.37996509,218.88,218.81,26.37996509]
[1734371770044,26.37996509,218.88,218.8,26.37996509]
[1734371770440,5.0,218.99,218.72,137.9]
[1734371770441,26.37996509,218.86,218.79,26.37996509]
[1734371770657,26.37996509,218.86,218.75,0.68530421]
[1734371770658,26.37996509,218.86,218.78,26.37996509]
[1734371770863,26.37996509,218.87,218.8,26.37996509]
[1734371771048,7.9885,219.0,218.86,26.37996509]
[1734371771261,23.776884,218.94,218.88,26.37996509]
[1734371771464,26.37996509,218.92,218.85,26.37996509]
[1734371771843,0.12549,218.91,218.86,26.37996509]
[1734371773448,26.37996509,218.91,218.87,20.0]
[1734371773770,7.9885,219.0,218.87,20.0]
[1734371773771,26.37996509,218.96,218.88,26.37996509]
[1734371773969,0.12549,218.95,218.89,26.37996509]
[1734371774672,0.12549,218.96,218.93,26.37996509]
[1734371774875,26.37996509,219.02,218.95,26.37996509]
[1734371775181,26.37996509,219.05,218.98,26.37996509]
[1734371775356,26.50545509,219.04,218.97,26.37996509]
[1734371775672,26.37996509,219.01,218.94,26.37996509]
[1734371775846,26.37996509,219.01,218.93,20.0]
[1734371775847,26.37996509,219.0,218.93,46.37996509]
[1734371776049,0.12549,218.99,218.93,46.37996509]
[1734371776273,26.50545509,218.99,218.92,26.37996509]
[1734371776571,0.12549,218.99,218.93,26.37996509]
[1734371777269,0.12549,218.99,218.88,0.68491423]
[1734371777270,0.12549,218.98,218.92,26.37996509]
[1734371777642,26.50545509,218.98,218.91,26.37996509]
[1734371777847,8.76988344,219.06,218.88,0.68491423]
[1734371777848,0.12549,218.95,218.88,26.37996509]
[1734371778049,26.50545509,218.95,218.88,26.37996509]
[1734371778579,0.12549,218.95,218.89,26.37996509]
[1734371779375,0.12549,218.95,218.9,26.37996509]
[1734371779674,0.12549,218.95,218.89,26.37996509]
[1734371780052,23.776884,218.94,218.88,26.37996509]
[1734371780464,26.37996509,218.97,218.9,26.37996509]
[1734371780659,23.776884,218.97,218.92,26.37996509]
[1734371780872,50.15684909,218.96,218.88,26.37996509]
[1734371781068,23.776884,218.95,218.88,26.37996509]
[1734371781887,0.12549,218.94,218.88,26.37996509]
[1734371782954,0.12549,218.94,218.86,26.37996509]
[1734371783197,23.902374,218.92,218.86,26.37996509]
[1734371783677,23.776884,218.96,218.9,26.37996509]
[1734371784270,0.12549,218.95,218.86,0.68517762]
[1734371784484,0.12549,218.95,218.9,26.37996509]
[1734371784683,0.12549,218.96,218.92,26.37996509]
[1734371785688,23.776884,218.99,218.95,26.37996509]
[1734371785979,26.37996509,219.01,218.94,26.37996509]
[1734371786187,26.50545509,218.99,218.92,26.37996509]
[1734371786557,0.12549,218.99,218.93,26.37996509]
[1734371787080,23.902374,218.99,218.93,26.37996509]
[1734371787464,23.902374,218.99,218.95,26.37996509]
[1734371787666,23.902374,218.99,218.88,0.68496516]
[1734371787667,50.28233909,219.01,218.94,26.37996509]
[1734371787868,26.37996509,219.01,218.94,26.37996509]
[1734371788169,26.37996509,219.01,218.95,26.37996509]
[1734371788381,26.37996509,219.02,218.95,26.37996509]
[1734371788696,26.37996509,219.0,218.93,26.37996509]
[1734371789082,26.37996509,219.01,218.94,26.37996509]
[1734371789470,23.776884,219.0,218.94,26.37996509]
[1734371790177,26.37996509,218.99,218.92,26.37996509]
[1734371790383,26.37996509,218.98,218.91,26.37996509]
[1734371790702,23.776884,219.0,218.93,26.37996509]
[1734371790703,50.15684909,219.0,218.93,26.37996509]
[1734371791119,26.37996509,218.99,218.92,26.37996509]
[1734371791299,23.776884,218.98,218.92,26.37996509]
[1734371791497,0.12549,218.97,218.92,26.37996509]
[1734371792110,26.37996509,218.99,218.93,26.37996509]
[1734371792111,23.902374,218.99,218.93,26.37996509]
[1734371792633,23.902374,218.99,218.94,26.37996509]
[1734371792932,0.12549,218.99,218.94,26.37996509]
[1734371793110,50.28233909,219.0,218.93,26.37996509]
[1734371793311,0.12549,219.0,218.95,26.37996509]
[1734371794126,0.12549,219.01,218.95,26.37996509]
[1734371794332,0.12549,218.99,218.93,26.37996509]
[1734371794553,0.12549,218.99,218.92,26.37996509]
[1734371795107,0.12549,218.99,218.93,26.37996509]
[1734371795322,26.37996509,219.01,218.94,26.37996509]
[1734371795520,23.776884,219.0,218.94,26.37996509]
[1734371795740,32.45256509,219.06,218.99,26.37996509]
[1734371796039,32.45256509,219.06,218.91,0.68490164]
[1734371796040,6.0726,219.06,219.01,26.37996509]
[1734371796205,26.37996509,219.08,219.01,26.37996509]
[1734371797413,2.79638152,219.1,219.03,26.37996509]
[1734371797414,26.37996509,219.1,219.03,26.37996509]
[1734371797597,26.37996509,219.09,219.03,26.37996509]
[1734371797934,34.14806509,219.12,219.05,26.37996509]
[1734371798109,26.37996509,219.08,219.01,26.37996509]
[1734371798349,26.37996509,219.09,219.02,26.37996509]
[1734371798551,0.12549,219.08,219.02,26.37996509]
[1734371798771,26.50545509,219.08,219.01,26.37996509]
[1734371799061,26.37996509,219.09,219.02,26.37996509]
[1734371799677,26.37996509,219.05,218.98,26.37996509]
[1734371799849,26.37996509,219.05,218.95,137.9]
[1734371799850,26.37996509,219.06,218.99,26.37996509]
[1734371800034,50.15684909,219.08,219.01,26.37996509]
[1734371800657,23.776884,219.06,219.0,26.37996509]
[1734371800864,23.776884,219.06,219.01,26.37996509]
[1734371801337,23.776884,219.06,219.0,26.37996509]
[1734371801962,23.776884,219.06,219.01,26.37996509]
[1734371802133,23.776884,219.07,219.01,26.37996509]
[1734371802330,50.15684909,219.07,219.0,26.37996509]
[1734371802762,0.12549,219.06,219.0,26.37996509]
[1734371803134,26.50545509,219.06,218.99,26.37996509]
[1734371804474,34.14806509,219.12,218.96,26.37996509]
[1734371804475,0.12549,219.02,218.96,26.37996509]
[1734371804767,0.12549,219.02,218.97,26.37996509]
[1734371804948,0.12549,219.03,218.98,26.37996509]
[1734371805465,50.15684909,219.05,218.98,26.37996509]
[1734371805669,0.12549,219.04,218.98,26.37996509]
[1734371806759,0.12549,219.04,218.99,26.37996509]
[1734371806944,26.37996509,219.05,218.98,26.37996509]
[1734371808456,26.37996509,219.06,218.99,26.37996509]
[1734371809251,36.01767966,219.12,219.04,26.37996509]
[1734371809252,26.37996509,219.1,219.04,26.37996509]
[1734371809591,26.37996509,219.11,219.04,26.37996509]
[1734371809753,26.37996509,219.1,219.03,26.37996509]
[1734371810066,34.14806509,219.12,219.05,26.37996509]
[1734371810245,24.2516674,219.12,219.05,16.4835674]
[1734371810865,16.4835674,219.11,219.04,17.16816821]
[1734371811555,16.4835674,219.1,219.03,16.4835674]
[1734371811967,26.37752206,219.1,219.03,26.37752206]
[1734371812838,26.37752206,219.09,219.02,26.37752206]
[1734371813036,26.37752206,219.1,219.03,26.37752206]
[1734371813240,6.1162,219.12,219.06,26.37752206]
[1734371813474,26.37752206,219.11,219.04,26.37752206]
[1734371813676,6.1162,219.12,219.06,26.37752206]
[1734371813901,26.37752206,219.12,219.05,26.37752206]
[1734371814298,26.37752206,219.11,219.04,26.37752206]
[1734371815495,26.37752206,219.12,219.05,26.37752206]
[1734371818114,26.37752206,219.09,219.01,46.37752206]
[1734371818416,26.37752206,219.06,219.01,20.0]
[1734371818616,26.37752206,219.05,218.98,26.37752206]
[1734371820607,26.37752206,219.12,218.94,26.37752206]
[1734371820608,26.37752206,219.01,218.94,26.37752206]
[1734371820781,26.37752206,219.0,218.93,26.37752206]
[1734371821003,26.37752206,219.01,218.93,26.37752206]
[1734371821301,26.37752206,219.01,218.94,26.37752206]
[1734371821733,6.5529,219.06,219.0,26.37752206]
[1734371821906,6.5529,219.06,218.95,0.68495048]
[1734371821907,26.37752206,219.09,219.02,26.37752206]
[1734371822119,26.37752206,219.07,219.0,26.37752206]
[1734371823041,26.37752206,219.08,219.01,26.37752206]
[1734371823815,50.15440606,219.08,219.01,26.37752206]
[1734371824030,23.776884,219.08,219.02,26.37752206]
[1734371824904,27.97362206,219.11,219.04,26.37752206]
[1734371825105,32.93042206,219.12,219.05,26.37752206]
[1734371825444,27.93532206,219.16,219.09,26.37752206]
[1734371825616,27.93532206,219.16,219.06,0.68459814]
[1734371825617,6.2197,219.17,219.11,26.37752206]
[1734371825826,6.2197,219.17,219.13,26.37752206]
[1734371826027,26.37752206,219.2,219.13,26.37752206]
[1734371826644,27.93532206,219.21,219.14,26.37752206]
[1734371827155,26.37752206,219.2,219.14,26.37752206]
[1734371827314,32.59722206,219.22,219.16,26.37752206]
[1734371828333,1.5768,219.27,219.06,0.68424537]
[1734371828334,26.37752206,219.24,219.17,26.37752206]
[1734371828594,26.37752206,219.25,219.18,26.37752206]
[1734371828875,26.37752206,219.26,219.19,26.37752206]
[1734371829056,26.37752206,219.26,219.2,26.37752206]
[1734371829262,32.58922206,219.27,219.2,26.37752206]
[1734371829460,6.2117,219.27,219.21,26.37752206]
[1734371829658,26.37752206,219.26,219.19,26.37752206]
[1734371829858,26.37752206,219.25,219.18,26.37752206]
[1734371830060,26.37752206,219.26,219.19,26.37752206]
[1734371830472,26.37752206,219.28,219.21,26.37752206]
[1734371831054,26.37752206,219.27,219.2,26.37752206]
[1734371831661,26.37752206,219.25,219.18,26.37752206]
[1734371831859,26.37752206,219.25,219.13,0.68409198]
[1734371831860,26.37752206,219.22,219.15,26.37752206]
[1734371832063,26.37752206,219.21,219.14,26.37752206]
[1734371832587,26.37752206,219.21,219.11,1.5058]
[1734371832588,26.37752206,219.22,219.15,26.37752206]
[1734371833192,26.37752206,219.23,219.16,26.37752206]
[1734371833565,26.37752206,219.21,219.14,26.37752206]
[1734371833955,16.47556251,219.16,219.09,16.47556251]
[1734371834764,23.776884,219.22,219.12,16.47556251]
[1734371834980,16.47556251,219.19,219.12,16.47556251]
[1734371835292,16.47556251,219.18,219.12,16.47556251]
[1734371835500,16.47556251,219.18,219.11,16.47556251]
[1734371835663,16.47556251,219.18,219.07,0.68437839]
[1734371835664,16.47556251,219.18,219.12,16.47556251]
[1734371836074,16.47556251,219.19,219.12,16.47556251]
[1734371836273,16.47556251,219.2,219.13,16.47556251]
[1734371836491,16.47556251,219.19,219.12,16.47556251]
[1734371836673,16.47556251,219.19,219.11,16.47556251]
[1734371836882,16.47556251,219.19,219.12,16.47556251]
[1734371837083,16.47556251,219.17,219.1,16.47556251]
[1734371837582,16.47556251,219.16,219.09,16.47556251]
[1734371838797,16.47556251,219.17,219.1,16.47556251]
[1734371839370,16.47556251,219.19,219.12,16.47556251]
[1734371839731,23.776884,219.18,219.12,16.47556251]
[1734371841063,16.47556251,219.2,219.13,16.47556251]
[1734371841370,23.00096251,219.23,219.16,16.47556251]
[1734371841894,6.5254,219.23,219.17,16.47556251]
[1734371842099,16.47556251,219.25,219.18,16.47556251]
[1734371842486,16.47556251,219.24,219.17,16.47556251]
[1734371842696,16.47556251,219.23,219.16,16.47556251]
[1734371842878,1.5709,219.27,219.18,16.47556251]
[1734371843072,16.47556251,219.25,219.18,16.47556251]
[1734371843409,40.25244651,219.24,219.17,16.47556251]
[1734371843642,16.47556251,219.26,219.19,16.47556251]
[1734371844210,16.47556251,219.27,219.2,16.47556251]
[1734371844616,16.47556251,219.27,219.21,16.47556251]
[1734371845340,16.47556251,219.27,219.2,16.47556251]
[1734371846707,16.47556251,219.24,219.17,16.47556251]
[1734371846942,16.47556251,219.24,219.16,16.47556251]
[1734371847263,16.47556251,219.24,219.08,142.9]
[1734371847264,40.25244651,219.26,219.19,16.47556251]
[1734371847542,23.776884,219.26,219.2,16.47556251]
[1734371847743,40.25244651,219.26,219.19,16.47556251]
[1734371847934,16.47556251,219.25,219.18,16.47556251]
[1734371848248,16.47556251,219.24,219.17,16.47556251]
[1734371848815,16.47556251,219.23,219.16,0.68416187]
[1734371849019,16.47556251,219.24,219.17,16.47556251]
[1734371849449,40.25244651,219.26,219.19,16.47556251]
[1734371849747,23.776884,219.26,219.2,16.47556251]
[1734371849964,40.25244651,219.26,219.19,16.47556251]
[1734371850453,16.47556251,219.24,219.17,16.47556251]
[1734371850946,40.25244651,219.2,219.12,16.47556251]
[1734371851186,16.47556251,219.2,219.12,16.47556251]
[1734371851543,23.776884,219.2,219.14,16.47556251]
[1734371851992,16.47556251,219.24,219.17,16.47556251]
[1734371852284,16.47556251,219.26,219.19,16.47556251]
[1734371852472,16.47556251,219.27,219.2,16.47556251]
[1734371852654,23.776884,219.26,219.2,16.47556251]
[1734371854975,40.25244651,219.26,219.19,16.47556251]
[1734371855281,23.776884,219.26,219.2,16.47556251]
[1734371855454,23.776884,219.26,219.21,16.47556251]
[1734371855651,16.47556251,219.26,219.19,16.47556251]
[1734371856995,23.776884,219.27,219.21,16.47556251]
[1734371857677,23.776884,219.27,219.23,16.47556251]
[1734371857863,23.776884,219.29,219.23,16.47556251]
[1734371858872,16.47556251,219.32,219.25,16.47556251]
[1734371859495,16.47556251,219.34,219.27,16.47556251]
[1734371859912,16.47556251,219.33,219.26,16.47556251]
[1734371860603,23.776884,219.32,219.27,16.47556251]
[1734371860772,23.776884,219.32,219.26,16.47556251]
[1734371861169,23.776884,219.32,219.25,16.47556251]
[1734371861170,40.25244651,219.32,219.25,16.47556251]
[1734371862797,23.776884,219.32,219.26,16.47556251]
[1734371864469,23.776884,219.32,219.21,20.6839498]
[1734371864470,40.25244651,219.32,219.25,16.47556251]
[1734371865276,16.47556251,219.31,219.25,16.47556251]
[1734371865602,40.25244651,219.3,219.23,16.47556251]
[1734371866084,23.776884,219.3,219.24,16.47556251]
[1734371866787,40.25244651,219.3,219.23,16.47556251]
[1734371867574,40.25244651,219.3,219.22,16.47556251]
[1734371867777,23.776884,219.28,219.22,16.47556251]
[1734371869185,23.776884,219.29,219.22,16.47556251]
[1734371869504,23.776884,219.29,219.23,16.47556251]
[1734371869703,23.776884,219.3,219.23,16.47556251]
[1734371869879,23.776884,219.3,219.24,16.47556251]
[1734371870292,23.776884,219.3,219.25,16.47556251]
[1734371870490,23.776884,219.32,219.25,16.47556251]
[1734371870692,40.25244651,219.32,219.25,16.47556251]
[1734371871601,23.776884,219.33,219.26,16.47556251]
[1734371872698,23.776884,219.33,219.27,16.47556251]
[1734371873922,40.25244651,219.33,219.26,16.47556251]
[1734371874219,34.30579855,219.33,219.26,10.52891455]
[1734371874988,23.776884,219.33,219.27,10.52891455]
[1734371877123,0.5388105,219.35,219.32,10.52891455]
[1734371877719,0.5388105,219.35,219.24,0.68381501]
[1734371877934,0.5388105,219.35,219.29,10.52891455]
[1734371878295,24.3156945,219.35,219.29,10.52891455]
[1734371879417,34.30579855,219.33,219.26,10.52891455]
[1734371879610,10.52891455,219.33,219.26,10.52891455]
[1734371879815,34.84460905,219.35,219.27,10.52891455]
[1734371880325,10.52891455,219.33,219.26,10.52891455]
[1734371880497,6.6497,219.31,219.1,1.6356]
[1734371880699,10.52891455,219.16,219.08,10.52891455]
[1734371881024,6.6497,219.2,219.11,10.52891455]
[1734371881025,23.776884,219.19,219.11,10.52891455]
[1734371881228,34.30579855,219.19,219.11,10.52891455]
[1734371881801,10.52891455,219.18,219.1,10.52891455]
[1734371882003,23.776884,219.19,219.13,16.47412723]
[1734371883317,40.25101123,219.19,219.12,16.47412723]
[1734371883521,40.25101123,219.19,219.11,16.47412723]
[1734371884002,16.47412723,219.21,219.14,16.47412723]
[1734371884526,16.47412723,219.22,219.14,16.47412723]
[1734371884711,16.47412723,219.22,219.15,16.47412723]
[1734371884915,16.47412723,219.22,219.14,16.47412723]
[1734371886423,16.47412723,219.23,219.16,16.47412723]
[1734371886624,40.25101123,219.22,219.15,16.47412723]
[1734371886818,22.86942723,219.25,219.18,16.47412723]
[1734371887021,23.776884,219.24,219.18,16.47412723]
[1734371887733,23.776884,219.24,219.19,16.47412723]
[1734371887931,1.6434,219.27,219.21,16.47412723]
[1734371888122,16.47412723,219.29,219.22,16.47412723]
[1734371888313,16.47412723,219.28,219.21,16.47412723]
[1734371889015,16.47412723,219.29,219.23,16.47412723]
[1734371889228,6.6221,219.3,219.25,16.47412723]
[1734371889523,16.47412723,219.31,219.24,16.47412723]
[1734371889722,7.10263592,219.32,219.26,16.47412723]
[1734371889935,16.47412723,219.34,219.28,16.47412723]
[1734371890339,0.5388105,219.35,219.3,16.47412723]
[1734371890634,0.5388105,219.35,219.29,16.47412723]
[1734371891717,17.01293773,219.35,219.28,16.47412723]
[1734371892230,40.25101123,219.33,219.26,16.47412723]
[1734371892623,40.25101123,219.33,219.27,16.47412723]
[1734371893820,23.776884,219.33,219.27,16.47412723]
[1734371894516,0.5388105,219.35,219.31,16.47412723]
[1734371895225,0.5388105,219.35,219.3,16.47412723]
[1734371895827,0.5388105,219.35,219.29,16.47412723]
[1734371896031,17.01293773,219.35,219.27,20.0]
[1734371896259,23.776884,219.33,219.27,16.47412723]
[1734371896459,0.5388105,219.35,219.32,16.47412723]
[1734371896674,0.5388105,219.35,219.34,16.47412723]
[1734371899347,0.5388105,219.35,219.34,32.94825446]
[1734371899667,0.5388105,219.35,219.34,33.63180468]
[1734371899888,0.5388105,219.35,219.34,17.15767745]
[1734371900092,0.5388105,219.35,219.32,20.0]
[1734371900280,0.5388105,219.35,219.34,16.47412723]
[1734371900445,0.5388105,219.35,219.33,16.47412723]
[1734371900980,0.5388105,219.35,219.34,16.47412723]
[1734371901556,0.5388105,219.35,219.33,16.47412723]
[1734371901757,0.5388105,219.35,219.34,16.47412723]
[1734371903883,0.5388105,219.35,219.32,16.47412723]
[1734371906385,0.5388105,219.35,219.33,16.47412723]
[1734371906584,0.5388105,219.35,219.34,16.47412723]
[1734371907582,0.5388105,219.35,219.34,32.94825446]
[1734371907770,0.5388105,219.35,219.34,33.63181656]
[1734371909192,21.30790692,219.54,219.37,20.0]
[1734371909490,21.30790692,219.54,219.35,7.6068]
[1734371909491,16.47412723,219.51,219.44,16.47412723]
[1734371910394,23.776884,219.5,219.44,16.47412723]
[1734371911090,40.25101123,219.5,219.43,16.47412723]
[1734371911315,23.776884,219.48,219.42,16.47412723]
[1734371911487,16.47412723,219.46,219.39,16.47412723]
[1734371911800,23.776884,219.45,219.39,16.47412723]
[1734371912904,16.47412723,219.51,219.44,16.47412723]
[1734371913092,23.776884,219.5,219.44,16.47412723]
[1734371913297,40.25101123,219.5,219.43,16.47412723]
[1734371913614,23.776884,219.48,219.42,16.47412723]
[1734371913905,23.776884,219.48,219.38,36.47412723]
[1734371913906,23.776884,219.45,219.38,36.47412723]
[1734371914085,23.776884,219.45,219.38,16.47412723]
[1734371914086,16.47412723,219.45,219.38,16.47412723]
[1734371914401,40.25101123,219.44,219.37,16.47412723]
[1734371914601,16.47412723,219.43,219.36,16.47412723]
[1734371914804,40.25101123,219.42,219.35,16.47412723]
[1734371914982,16.47412723,219.42,219.35,16.47412723]
[1734371915396,16.47412723,219.43,219.36,16.47412723]
[1734371915609,23.776884,219.42,219.36,16.47412723]
[1734371916302,23.776884,219.43,219.36,16.47412723]
[1734371917980,16.47412723,219.45,219.38,16.47412723]
[1734371918182,40.25101123,219.46,219.3,139.4958]
[1734371918382,16.47412723,219.46,219.38,16.47412723]
[1734371918579,16.47412723,219.46,219.39,16.47412723]
[1734371918786,16.47412723,219.46,219.38,16.47412723]
[1734371919514,16.47412723,219.46,219.39,16.47412723]
[1734371919807,23.776884,219.45,219.39,16.47412723]
[1734371920612,23.776884,219.45,219.38,16.47412723]
[1734371921227,23.776884,219.45,219.4,16.47412723]
[1734371921383,23.776884,219.46,219.4,16.47412723]
[1734371922903,40.25101123,219.48,219.41,16.47412723]
[1734371923916,40.25101123,219.48,219.44,16.47412723]
[1734371923917,23.776884,219.48,219.44,16.47412723]
[1734371924213,16.47412723,219.53,219.45,16.47412723]
[1734371924715,16.47412723,219.49,219.42,16.47412723]
[1734371924904,16.47412723,219.5,219.43,16.47412723]
[1734371925087,16.47412723,219.51,219.44,16.47412723]
[1734371926111,40.25101123,219.5,219.43,16.47412723]
[1734371926319,26.39421458,219.56,219.41,16.47412723]
[1734371926320,23.776884,219.48,219.41,16.47412723]
[1734371926612,23.776884,219.46,219.4,16.47412723]
[1734371927791,23.776884,219.47,219.42,16.47412723]
[1734371928006,16.47412723,219.46,219.39,16.47412723]
[1734371928200,23.776884,219.45,219.39,16.47412723]
[1734371928391,16.47412723,219.44,219.38,16.47412723]
[1734371928606,40.25101123,219.43,219.36,16.47412723]
[1734371929110,40.25101123,219.43,219.35,16.47412723]
[1734371929111,16.47412723,219.42,219.35,16.47412723]
[1734371929324,23.776884,219.41,219.35,16.47412723]
[1734371930086,8.1846,219.46,219.3,1.5958]
[1734371930087,40.25101123,219.37,219.3,18.06992723]
[1734371930334,16.47412723,219.38,219.31,16.47412723]
[1734371930495,23.776884,219.39,219.3,1.5958]
[1734371930496,23.776884,219.36,219.32,16.47412723]
[1734371930818,40.25101123,219.38,219.3,18.06992723]
[1734371931018,40.25101123,219.38,219.25,1.591]
[1734371931019,16.47412723,219.33,219.25,1.591]
[1734371931208,5.0,219.44,219.25,18.06512723]
[1734371931209,40.25101123,219.32,219.25,18.06512723]
[1734371931512,23.776884,219.32,219.26,16.47412723]
[1734371932690,23.776884,219.32,219.27,16.47412723]
[1734371932892,23.776884,219.32,219.23,6.493]
[1734371932893,16.47412723,219.38,219.31,16.47412723]
[1734371933095,23.776884,219.38,219.31,16.47412723]
[1734371933313,23.776884,219.38,219.33,16.47412723]
[1734371933517,23.776884,219.39,219.33,16.47412723]
[1734371934511,23.776884,219.4,219.33,16.47412723]
[1734371934813,40.25101123,219.4,219.33,16.47412723]
[1734371936222,40.25101123,219.4,219.32,16.47412723]
[1734371937241,40.25101123,219.4,219.23,27.96712723]
[1734371937242,16.47412723,219.34,219.23,144.393]
[1734371937431,23.776884,219.31,219.25,16.47412723]
[1734371937621,23.776884,219.31,219.27,16.47412723]
[1734371937934,23.776884,219.33,219.27,16.47412723]
[1734371939955,23.776884,219.33,219.3,20.0]
[1734371940148,19.20527184,219.43,219.31,20.0]
[1734371940149,16.47412723,219.35,219.31,20.0]
[1734371940349,23.776884,219.34,219.31,20.0]
[1734371940856,40.25101123,219.34,219.31,20.0]
[1734371941379,23.776884,219.34,219.31,20.0]
[1734371941580,40.25101123,219.34,219.31,20.0]
[1734371942242,23.776884,219.34,219.31,20.0]
[1734371942785,23.776884,219.35,219.32,20.0]
[1734371944150,23.776884,219.36,219.33,20.0]
[1734371944977,23.776884,219.37,219.32,20.0]
[1734371945273,40.25101123,219.37,219.33,20.0]
[1734371945647,7.10263592,219.43,219.38,20.0]
[1734371945850,16.47412723,219.43,219.39,20.0]
[1734371946236,16.47412723,219.4,219.36,20.0]
[1734371946472,16.47412723,219.37,219.33,20.0]
[1734371947041,23.776884,219.36,219.33,20.0]
[1734371948280,40.25101123,219.36,219.33,20.0]
[1734371948842,16.47412723,219.35,219.33,20.0]
[1734371949007,40.25101123,219.36,219.33,20.0]
[1734371949315,16.47412723,219.35,219.32,20.0]
[1734371949634,23.776884,219.32,219.26,137.9]
[1734371949930,23.776884,219.32,219.24,16.47412723]
[1734371949931,16.47412723,219.31,219.24,16.47412723]
[1734371950114,16.47412723,219.27,219.2,157.87287904]